fUSD/lending_fUSD_20260218
["ID","MTS","AMOUNT","RATE_DAILY","PERIOD"]
[405869491,1771373449282,-1470.0687873,0.00017589,2]
[405869492,1771373449292,-500.0,0.00017589,2]
[405869493,1771373449303,-1982.0,0.00017589,2]
[405869494,1771373449313,-500.0,0.00017589,2]
[405869495,1771373449322,-500.0,0.00017589,2]
[405869496,1771373449333,-500.0,0.00017589,2]
[405869497,1771373449342,-596.0,0.00017589,2]
[405869498,1771373449352,-500.0,0.00017589,2]
[405869499,1771373449365,-500.0,0.00017589,2]
[405869500,1771373449374,-500.0,0.00017589,2]
[405869501,1771373449384,-500.0,0.00017589,2]
[405869502,1771373449393,-500.0,0.00017589,2]
[405869503,1771373449405,-278.87,0.00017591,2]
[405869504,1771373449414,-151.0,0.00017592,2]
[405869505,1771373449424,-961.58486559,0.00017592,2]
[405869506,1771373449433,-192.29,0.00017593,2]
[405869507,1771373449444,-211.76,0.00017598,2]
[405869508,1771373449454,-13000.0,0.000176,6]
[405869509,1771373449463,-278.87,0.00017618,2]
[405869510,1771373449473,-1000.0,0.00017625,2]
[405869511,1771373449483,-211.76,0.00017628,2]
[405869512,1771373449492,-1000.0,0.00017638,2]
[405869513,1771373449502,-10846.14923654,0.0001764,2]
[405869514,1771373449511,-1470.0687873,0.00017644,2]
[405869515,1771373449521,-500.0,0.00017644,2]
[405869516,1771373449530,-1982.0,0.00017644,2]
[405869517,1771373449540,-500.0,0.00017644,2]
[405869518,1771373449550,-500.0,0.00017644,2]
[405869519,1771373449560,-500.0,0.00017644,2]
[405869520,1771373449570,-596.0,0.00017644,2]
[405869521,1771373449581,-500.0,0.00017644,2]
[405869522,1771373449591,-500.0,0.00017644,2]
[405869523,1771373449600,-500.0,0.00017644,2]
[405869524,1771373449610,-500.0,0.00017644,2]
[405869525,1771373449619,-500.0,0.00017644,2]
[405869526,1771373449629,-287.61899177,0.00017645,2]
[405869527,1771373449638,-181.08010149,0.00017645,2]
[405869528,1771373449649,-200.0,0.00017645,2]
[405869529,1771373449662,-771.01748645,0.00017645,2]
[405869530,1771373449672,-1000.0,0.00017646,2]
[405869531,1771373449682,-151.0,0.00017647,2]
[405869532,1771373449692,-997.16350561,0.00017647,2]
[405869533,1771373449702,-1000.0,0.00017651,2]
[405869534,1771373449712,-283.0,0.00017656,2]
[405869535,1771373449722,-1000.0,0.00017659,2]
[405869536,1771373449731,-1000.0,0.00017659,2]
[405869537,1771373449741,-1000.0,0.00017663,2]
[405869538,1771373449750,-350.0,0.00017678,2]
[405869539,1771373449760,-1942.0,0.0001768,2]
[405869540,1771373449770,-160.0,0.0001768,2]
[405869541,1771373449780,-2835.0,0.0001768,2]
[405869542,1771373449790,-1438.0,0.0001768,2]
[405869543,1771373449799,-190.0,0.0001768,2]
[405869544,1771373449808,-1000.0,0.0001769,2]
[405869545,1771373449818,-150.0,0.00017692,2]
[405869546,1771373449829,-1000.0,0.00017695,2]
[405869547,1771373449838,-18885.94328464,0.00017696,2]
[405869548,1771373449848,-1000.0,0.00017696,2]
[405869549,1771373449857,-500.0,0.00017699,2]
[405869550,1771373449867,-1982.0,0.00017699,2]
[405869551,1771373449876,-361.9355564,0.00017699,2]
[405869552,1771373449885,-500.0,0.00017699,2]
[405869553,1771373449894,-500.0,0.00017699,2]
[405869554,1771373449904,-596.0,0.00017699,2]
[405869555,1771373449914,-500.0,0.00017699,2]
[405869556,1771373449923,-500.0,0.00017699,2]
[405869557,1771373449932,-500.0,0.00017699,2]
[405869558,1771373449941,-500.0,0.00017699,2]
[405869559,1771373449951,-512.26030593,0.00017699,2]
[405869560,1771373449960,-1000.0,0.00017699,2]
[405869561,1771373449969,-1000.0,0.00017699,2]
[405869562,1771373449979,-1000.0,0.00017699,2]
[405869563,1771373449988,-1000.0,0.00017699,2]
[405869564,1771373449997,-1000.0,0.00017699,2]
[405869565,1771373450007,-1000.0,0.00017699,2]
[405869566,1771373450016,-1000.0,0.00017699,2]
[405869567,1771373450025,-1000.0,0.00017699,2]
[405869568,1771373450035,-1000.0,0.00017699,2]
[405869569,1771373450044,-150.0,0.000177,2]
[405869570,1771373450053,-13000.0,0.000177,6]
[405869571,1771373450062,-151.0,0.00017702,2]
[405869572,1771373450074,-1000.0,0.00017705,2]
[405869573,1771373450083,-1000.0,0.00017709,2]
[405869574,1771373450093,-1000.0,0.00017711,2]
[405869575,1771373450103,-150.0,0.00017714,2]
[405869576,1771373450112,-500.0,0.00017726,7]
[405869577,1771373450121,-1470.0687873,0.00017726,2]
[405869578,1771373450131,-2004.41635969,0.0001773,2]
[405869579,1771373450140,-150.0,0.00017746,2]
[405869580,1771373450149,-1000.0,0.00017749,2]
[405869581,1771373450159,-224.65460803,0.00017754,2]
[405869582,1771373450168,-1982.0,0.00017754,2]
[405869583,1771373450177,-500.0,0.00017754,2]
[405869584,1771373450186,-500.0,0.00017754,2]
[405869585,1771373450196,-596.0,0.00017754,2]
[405869586,1771373450206,-500.0,0.00017754,2]
[405869587,1771373450224,-500.0,0.00017754,2]
[405869588,1771373450233,-500.0,0.00017754,2]
[405869589,1771373450243,-500.0,0.00017754,2]
[405869590,1771373450252,-1000.0,0.00017754,2]
[405869591,1771373450262,-151.0,0.00017757,2]
[405869592,1771373450271,-1000.0,0.00017767,2]
[405869593,1771373450280,-1000.0,0.00017772,2]
[405869594,1771373450289,-150.0,0.00017777,2]
[405869595,1771373450298,-1470.0687873,0.00017781,2]
[405869596,1771373450308,-283.0,0.00017785,2]
[405869597,1771373450317,-166.11141928,0.0001779,2]
[405869598,1771373450327,-996.0200937,0.0001779,2]
[405869599,1771373450336,-1013.23,0.00017794,2]
[405869600,1771373450345,-1013.23,0.00017794,2]
[405869601,1771373450356,-1013.23,0.00017794,2]
[405869602,1771373450366,-1013.23,0.00017794,2]
[405869603,1771373450375,-1013.32589873,0.00017794,2]
[405869604,1771373450385,-649.58,0.00017794,2]
[405869605,1771373450395,-649.58,0.00017794,2]
[405869606,1771373450406,-649.58,0.00017794,2]
[405869607,1771373450415,-649.58,0.00017794,2]
[405869608,1771373450425,-649.74,0.00017794,2]
[405869609,1771373450436,-1180.75,0.00017794,2]
[405869610,1771373450446,-1180.75,0.00017794,2]
[405869611,1771373450455,-1180.75,0.00017794,2]
[405869612,1771373450464,-1180.75,0.00017794,2]
[405869613,1771373450474,-1180.79,0.00017794,2]
[405869614,1771373450483,-500.0,0.00017794,2]
[405869615,1771373450493,-500.0,0.00017794,2]
[405869616,1771373450502,-500.0,0.00017794,2]
[405869617,1771373450512,-383.99953744,0.00017794,2]
[405869618,1771373450521,-1479.1,0.00017794,2]
[405869619,1771373450530,-1479.1,0.00017794,2]
[405869620,1771373450539,-1479.1,0.00017794,2]
[405869621,1771373450549,-1479.1,0.00017794,2]
[405869622,1771373450558,-1479.19350963,0.00017794,2]
[405869623,1771373450568,-546.97,0.00017794,2]
[405869624,1771373450577,-546.97,0.00017794,2]
[405869625,1771373450587,-546.97,0.00017794,2]
[405869626,1771373450596,-546.97,0.00017794,2]
[405869627,1771373450605,-547.09394166,0.00017794,2]
[405869628,1771373450614,-1546.47,0.00017794,2]
[405869629,1771373450623,-1546.47,0.00017794,2]
[405869630,1771373450633,-1546.47,0.00017794,2]
[405869631,1771373450642,-1546.47,0.00017794,2]
[405869632,1771373450652,-1546.51311819,0.00017794,2]
[405869633,1771373450662,-516.5,0.00017794,2]
[405869634,1771373450671,-516.5,0.00017794,2]
[405869635,1771373450681,-516.5,0.00017794,2]
[405869636,1771373450691,-516.5,0.00017794,2]
[405869637,1771373450700,-516.63,0.00017794,2]
[405869638,1771373450710,-13000.0,0.000178,6]
[405869639,1771373450719,-444.64,0.00017808,2]
[405869640,1771373450730,-500.0,0.00017808,2]
[405869641,1771373450739,-500.0,0.00017808,2]
[405869642,1771373450749,-500.0,0.00017808,2]
[405869643,1771373450759,-500.0,0.00017808,2]
[405869644,1771373450768,-500.0,0.00017808,2]
[405869645,1771373450778,-428.28311124,0.00017808,2]
[405869646,1771373450787,-500.0,0.00017808,2]
[405869647,1771373450797,-500.0,0.00017808,2]
[405869648,1771373450876,-500.0,0.00017808,2]
[405869649,1771373450886,-500.0,0.00017808,2]
[405869650,1771373450896,-500.0,0.00017808,2]
[405869651,1771373450904,-500.0,0.00017808,2]
[405869652,1771373450913,-500.0,0.00017808,2]
[405869653,1771373450923,-500.0,0.00017808,2]
[405869654,1771373450933,-500.0,0.00017808,2]
[405869655,1771373450942,-500.0,0.00017808,2]
[405869656,1771373450951,-599.79817787,0.00017808,2]
[405869657,1771373450960,-500.0,0.00017808,2]
[405869658,1771373450969,-500.0,0.00017808,2]
[405869659,1771373450979,-600.0,0.00017808,2]
[405869660,1771373450988,-800.0,0.00017808,2]
[405869661,1771373450999,-1000.0,0.00017808,2]
[405869662,1771373451008,-250.0,0.00017808,20]
[405869663,1771373451017,-250.0,0.00017808,20]
[405869664,1771373451027,-250.0,0.00017808,20]
[405869665,1771373451038,-250.0,0.00017808,20]
[405869666,1771373451047,-250.0,0.00017808,20]
[405869667,1771373451057,-250.0,0.00017808,20]
[405869668,1771373451066,-250.0,0.00017808,20]
[405869669,1771373451075,-175.581622,0.00017808,20]
[405869670,1771373451084,-1982.0,0.00017808,2]
[405869671,1771373451094,-500.0,0.00017808,2]
[405869672,1771373451104,-498.26652801,0.00017808,2]
[405869673,1771373451113,-596.0,0.00017808,2]
[405869674,1771373451123,-500.0,0.00017808,2]
[405869675,1771373451132,-442.49812506,0.00017808,2]
[405869676,1771373451141,-500.0,0.00017808,2]
[405869677,1771373451151,-500.0,0.00017808,2]
[405869678,1771373451160,-1000.0,0.00017811,2]
[405869679,1771373451169,-151.0,0.00017812,2]
[405869680,1771373451178,-1000.0,0.00017814,2]
[405869681,1771373451188,-2000.0,0.0001782,2]
[405869682,1771373451196,-2000.0,0.0001782,2]
[405869683,1771373451206,-2000.0,0.0001782,2]
[405869684,1771373451215,-2000.0,0.0001782,2]
[405869685,1771373451224,-1000.0,0.00017822,2]
[405869686,1771373451234,-1000.0,0.0001783,2]
[405869687,1771373451243,-1000.0,0.00017836,2]
[405869688,1771373451252,-741.0,0.00017847,2]
[405869689,1771373451261,-741.0,0.00017851,2]
[405869690,1771373451278,-200.0,0.00017855,2]
[405869691,1771373451287,-500.0,0.00017856,2]
[405869692,1771373451296,-200.0,0.00017856,2]
[405869693,1771373451306,-200.0,0.00017856,2]
[405869694,1771373451315,-1470.0687873,0.00017863,2]
[405869695,1771373451324,-1982.0,0.00017863,2]
[405869696,1771373451333,-611.76249723,0.00017863,2]
[405869697,1771373451344,-596.0,0.00017863,2]
[405869698,1771373451355,-500.0,0.00017863,2]
[405869699,1771373451367,-500.0,0.00017863,2]
[405869700,1771373451376,-500.0,0.00017863,2]
[405869701,1771373451385,-151.0,0.00017867,2]
[405869702,1771373451394,-741.0,0.00017868,2]
[405869703,1771373451404,-1000.0,0.00017881,2]
[405869704,1771373451413,-1000.0,0.00017884,2]
[405869705,1771373451422,-1000.0,0.00017886,2]
[405869706,1771373451434,-150.0,0.00017887,2]
[405869707,1771373451443,-1000.0,0.00017889,2]
[405869708,1771373451452,-150.0,0.0001789,2]
[405869709,1771373451461,-741.0,0.0001789,2]
[405869710,1771373451470,-389.0,0.00017893,2]
[405869711,1771373451479,-1145.0,0.00017893,2]
[405869712,1771373451489,-150.0,0.000179,2]
[405869713,1771373451497,-150.0,0.000179,2]
[405869714,1771373451506,-150.0,0.000179,2]
[405869715,1771373451516,-1000.0,0.000179,2]
[405869716,1771373451525,-25000.0,0.000179,3]
[405869717,1771373451534,-150.0,0.000179,2]
[405869718,1771373451543,-13383.0,0.000179,6]
[405869719,1771373451552,-5869.81792752,0.000179,2]
[405869720,1771373451561,-151.9048494,0.000179,2]
[405869721,1771373451571,-1873.72265739,0.000179,2]
[405869722,1771373451580,-18885.94328464,0.000179,2]
[405869723,1771373451589,-1873.72265737,0.000179,2]
[405869724,1771373451598,-1000.0,0.00017903,2]
[405869725,1771373451608,-1000.0,0.00017912,2]
[405869726,1771373451617,-150.0,0.00017913,2]
[405869727,1771373451626,-1982.0,0.00017918,2]
[405869728,1771373451635,-596.0,0.00017918,2]
[405869729,1771373451645,-500.0,0.00017918,2]
[405869730,1771373451654,-500.0,0.00017918,2]
[405869731,1771373451663,-481.0942881,0.00017918,2]
[405869732,1771373451673,-1000.0,0.0001792,2]
[405869733,1771373451682,-1000.0,0.00017932,2]
[405869734,1771373451692,-1000.0,0.00017942,2]
[405869735,1771373451701,-150.0,0.00017943,2]
[405869736,1771373451710,-1000.0,0.00017949,2]
[405869737,1771373451719,-1000.0,0.00017955,2]
[405869738,1771373451728,-2832.0,0.00017956,2]
[405869739,1771373451738,-1000.0,0.00017956,2]
[405869740,1771373451747,-150.0,0.00017958,2]
[405869741,1771373451756,-152.0,0.00017962,2]
[405869742,1771373451765,-1508.0,0.00017962,2]
[405869743,1771373451774,-152.0,0.00017962,2]
[405869744,1771373451784,-1508.0,0.00017962,2]
[405869745,1771373451793,-152.0,0.00017962,2]
[405869746,1771373451802,-1508.0,0.00017962,2]
[405869747,1771373451811,-152.0,0.00017962,2]
[405869748,1771373451820,-153.0,0.00017962,2]
[405869749,1771373451829,-1508.0,0.00017962,2]
[405869750,1771373451838,-152.0,0.00017962,2]
[405869751,1771373451847,-153.0,0.00017962,2]
[405869752,1771373451856,-1508.0,0.00017962,2]
[405869753,1771373451865,-152.0,0.00017962,2]
[405869754,1771373451874,-153.0,0.00017962,2]
[405869755,1771373451883,-1508.0,0.00017962,2]
[405869756,1771373451892,-153.0,0.00017962,2]
[405869757,1771373451901,-152.0,0.00017962,2]
[405869758,1771373451910,-158.65284712,0.00017962,2]
[405869759,1771373451919,-1508.0,0.00017962,2]
[405869760,1771373451928,-153.0,0.00017962,2]
[405869761,1771373451937,-152.0,0.00017962,2]
[405869762,1771373451946,-1508.0,0.00017962,2]
[405869763,1771373451955,-153.0,0.00017962,2]
[405869764,1771373451964,-152.0,0.00017962,2]
[405869765,1771373451973,-1508.0,0.00017962,2]
[405869766,1771373451983,-153.0,0.00017962,2]
[405869767,1771373451992,-152.0,0.00017962,2]
[405869768,1771373452000,-152.0,0.00017962,2]
[405869769,1771373452010,-1508.0,0.00017962,2]
[405869770,1771373452019,-153.0,0.00017962,2]
[405869771,1771373452027,-152.0,0.00017962,2]
[405869772,1771373452036,-152.0,0.00017962,2]
[405869773,1771373452045,-1508.0,0.00017962,2]
[405869774,1771373452054,-152.0,0.00017962,2]
[405869775,1771373452063,-153.0,0.00017962,2]
[405869776,1771373452072,-152.0,0.00017962,2]
[405869777,1771373452080,-1508.0,0.00017962,2]
[405869778,1771373452089,-153.0,0.00017962,2]
[405869779,1771373452099,-152.0,0.00017962,2]
[405869780,1771373452107,-152.0,0.00017962,2]
[405869781,1771373452116,-153.0,0.00017962,2]
[405869782,1771373452126,-152.0,0.00017962,2]
[405869783,1771373452135,-153.0,0.00017962,2]
[405869784,1771373452144,-152.0,0.00017962,2]
[405869785,1771373452154,-153.0,0.00017962,2]
[405869786,1771373452163,-153.0,0.00017962,2]
[405869787,1771373452172,-153.0,0.00017962,2]
[405869788,1771373452180,-153.0,0.00017962,2]
[405869789,1771373452189,-153.0,0.00017962,2]
[405869790,1771373452199,-153.0,0.00017962,2]
[405869791,1771373452208,-153.0,0.00017962,2]
[405869792,1771373452218,-1982.0,0.00017973,2]
[405869793,1771373452227,-596.0,0.00017973,2]
[405869794,1771373452236,-266.33885806,0.00017973,2]
[405869795,1771373452246,-500.0,0.00017973,2]
[405869796,1771373452255,-242.0,0.00017978,2]
[405869797,1771373452264,-500.0,0.00017982,2]
[405869798,1771373452273,-150.0,0.00017988,2]
[405869799,1771373452282,-500.0,0.0001799,2]
[405869800,1771373452291,-500.0,0.0001799,2]
[405869801,1771373452300,-576.40340077,0.0001799,2]
[405869802,1771373452309,-151.0,0.0001799,2]
[405869803,1771373452318,-151.0,0.0001799,2]
[405869804,1771373452327,-158.396759,0.0001799,2]
[405869805,1771373452337,-151.0,0.0001799,2]
[405869806,1771373452347,-445.585732,0.0001799,2]
[405869807,1771373452356,-445.585732,0.0001799,2]
[405869808,1771373452368,-445.585732,0.0001799,2]
[405869809,1771373452378,-445.585732,0.0001799,2]
[405869810,1771373452387,-1000.0,0.0001799,2]
[405869811,1771373452397,-1000.0,0.0001799,2]
[405869812,1771373452407,-1000.0,0.0001799,2]
[405869813,1771373452416,-1000.0,0.0001799,2]
[405869814,1771373452425,-1000.0,0.0001799,2]
[405869815,1771373452435,-1000.0,0.0001799,2]
[405869816,1771373452445,-1000.0,0.0001799,2]
[405869817,1771373452454,-1038.507706,0.0001799,2]
[405869818,1771373452464,-1573.195363,0.0001799,2]
[405869819,1771373452473,-1573.195363,0.0001799,2]
[405869820,1771373452483,-1573.195363,0.0001799,2]
[405869821,1771373452492,-1573.195363,0.0001799,2]
[405869822,1771373452501,-1580.76891287,0.0001799,2]
[405869823,1771373452510,-1580.76891287,0.0001799,2]
[405869824,1771373452519,-1000.0,0.00017992,2]
[405869825,1771373452529,-150.0,0.00017994,2]
[405869826,1771373452538,-151.0,0.00017997,2]
[405869827,1771373452548,-300.0,0.00017999,2]
[405869828,1771373452558,-300.0,0.00017999,2]
[405869829,1771373452567,-300.0,0.00017999,2]
[405869830,1771373452576,-666.0,0.00017999,2]
[405869831,1771373452585,-300.0,0.00017999,2]
[405869832,1771373452594,-300.0,0.00017999,2]
[405869833,1771373452603,-666.0,0.00017999,2]
[405869834,1771373452612,-300.0,0.00017999,2]
[405869835,1771373452622,-300.0,0.00017999,2]
[405869836,1771373452631,-243.22753519,0.00017999,2]
[405869837,1771373452640,-300.0,0.00017999,2]
[405869838,1771373452650,-666.0,0.00017999,2]
[405869839,1771373452659,-300.0,0.00017999,2]
[405869840,1771373452668,-150.0,0.00018,2]
[405869841,1771373452677,-6147879.76922113,0.00018,2]
[405869842,1771373453509,-6600.50259506,0.00011099,2]
[405869843,1771373453533,-446.15813812,0.00011099,2]
[405869844,1771373453545,-4703.4746999,0.00011099,2]
[405869845,1771373453571,-52850.415505,0.00011099,2]
[405869846,1771373453582,-167.10858835,0.00012347,2]
[405869847,1771373453592,-919.0,0.0001686,2]
[405869848,1771373453602,-836.17998718,0.00017,2]
[405869849,1771373453612,-1873.72265737,0.000179,2]
[405869850,1771373453622,-148816.57012743,0.00018,2]
[405869851,1771373453637,-3940696.48772341,0.00018,2]
[405869852,1771373453649,-421.11578465,0.00018,2]
[405869853,1771373453945,-151.0,0.00013268,2]
[405869854,1771373453955,-1873.72265737,0.000179,2]
[405869855,1771373453965,-70184.48648242,0.00018,2]
[405869856,1771373453976,-521.71363247,0.00018,2]
[405869857,1771373454681,-1176.29536712,0.00018,2]
[405869858,1771373454807,-16244.64100497,0.00011622,2]
[405869859,1771373454819,-3165.45,0.00011622,2]
[405869860,1771373454830,-9981.49999998,0.00011622,2]
[405869861,1771373454841,-1484.00000043,0.00011622,2]
[405869862,1771373454852,-927.34473525,0.00011622,2]
[405869863,1771373454904,-427.32439843,0.00011622,2]
[405869864,1771373454915,-523.49586585,0.00011622,2]
[405869865,1771373454926,-416.30793719,0.00011622,2]
[405869866,1771373454937,-328.00953762,0.00011622,2]
[405869867,1771373454948,-9241.54327382,0.00011622,2]
[405869868,1771373454963,-10356.8320898,0.00011622,2]
[405869869,1771373454974,-1963.30000003,0.00011622,2]
[405869870,1771373703849,3000.0,0.00019,120]
[405869871,1771373776019,3000.0,0.00019,120]
[405869873,1771373903502,3000.0,0.00019,120]
[405869879,1771374006524,3000.0,0.00019,120]
[405869880,1771374045506,4000.0,0.00019,120]
[405869882,1771374182168,4000.0,0.00019,120]
[405869883,1771374207091,2000.0,0.00019,120]
[405869885,1771374346809,3000.0,0.00019,120]
[405869895,1771374394573,4000.0,0.00019,120]
[405869902,1771374444136,3000.0,0.00019,120]
[405869903,1771374503035,570.61120273,0.00019,120]
[405869909,1771374532290,3000.0,0.00019,120]
[405869911,1771374568024,163.66,0.00018,30]
[405869912,1771374581738,3000.0,0.00019,120]
[405869921,1771374631842,-304.03423716,9.7e-05,3]
[405869922,1771374631854,-995.96576284,9.7e-05,3]
[405869923,1771374631864,-600.0,9.7e-05,3]
[405869925,1771374631874,-858.0598842,9.8e-05,3]
[405869928,1771374631893,-598.56,9.8e-05,3]
[405869930,1771374631905,-1143.3801158,9.8e-05,3]
[405869932,1771374631915,-115.5198842,9.8e-05,3]
[405869934,1771374631926,-557.8685024,9.8e-05,3]
[405869935,1771374631941,-626.6116134,9.8e-05,3]
[405869936,1771374631952,-1600.0,9.882e-05,2]
[405869937,1771374631962,-387.5020399,9.882e-05,2]
[405869938,1771374631977,-231.0,9.882e-05,2]
[405869939,1771374631987,-313.77144674,9.9e-05,3]
[405869940,1771374632023,-371.65095903,9.9e-05,3]
[405869941,1771374632035,-382.56411821,9.9e-05,3]
[405869942,1771374632084,-635.49,9.9e-05,3]
[405869961,1771374637980,-2196.52347602,9.9e-05,3]
[405869962,1771374637989,-1900.0,9.9e-05,3]
[405869963,1771374637999,-1200.0,9.997e-05,2]
[405869964,1771374638010,-1127.51433877,0.0001,5]
[405869965,1771374638020,-3366.61008163,0.0001,2]
[405869966,1771374638029,-165.0,0.0001,2]
[405869967,1771374638040,-5200.0,0.0001,3]
[405869968,1771374638049,-2600.0,0.0001,3]
[405869969,1771374638058,-387.50203989,0.00010001,2]
[405869970,1771374638067,-8968.49355841,0.00010169,2]
[405869971,1771374638079,-593.85829992,0.00010169,2]
[405869972,1771374638091,-3150.75,0.00010169,2]
[405869973,1771374638102,-744.87814167,0.00010169,2]
[405869974,1771374638112,-254.97245833,0.00010219,2]
[405869975,1771374638123,-132.52958156,0.00010219,2]
[405869976,1771374638132,-867.98234844,0.00010221,2]
[405869977,1771374638143,-871.59133588,0.00010221,2]
[405869978,1771374638154,-1164.20361154,0.00010221,2]
[405869979,1771374638165,-431.69598331,0.00010221,2]
[405869980,1771374638184,-1323.45921772,0.00010221,2]
[405869981,1771374638195,-1550.56786155,0.00010221,2]
[405869982,1771374638207,-83241.64234156,0.00010221,2]
[405869983,1771374638216,-2500.0,0.00010221,2]
[405869984,1771374638225,-6737.6189,0.00010221,2]
[405869985,1771374638234,-1500.0,0.00010233,2]
[405869986,1771374638244,-7513.00308235,0.00010235,2]
[405869987,1771374638254,-151.9048494,0.00010235,2]
[405869988,1771374638263,-557.45332478,0.00010235,2]
[405869989,1771374638273,-2162.4795237,0.00010235,2]
[405869990,1771374638282,-21155.78997856,0.00010296,2]
[405869991,1771374638292,-1053.84594191,0.00010311,2]
[405869992,1771374638301,-1053.84594191,0.00010311,2]
[405869993,1771374638310,-151.0,0.00010318,2]
[405869995,1771374638319,-151.0,0.00010318,2]
[405869997,1771374638328,-313.65581747,0.0001032,2]
[405869998,1771374638337,-500.0,0.0001032,2]
[405870000,1771374638347,-500.0,0.0001032,2]
[405870002,1771374638356,-500.0,0.0001032,2]
[405870004,1771374638366,-504.90627517,0.0001032,2]
[405870006,1771374638375,-155.25349545,0.0001032,2]
[405870008,1771374638385,-500.0,0.0001032,2]
[405870010,1771374638394,-500.0,0.0001032,2]
[405870012,1771374638403,-500.0,0.0001032,2]
[405870014,1771374638412,-500.0,0.0001032,2]
[405870016,1771374638421,-500.0,0.0001032,2]
[405870018,1771374638430,-397.02555891,0.0001032,2]
[405870020,1771374638439,-3500000.0,0.00010321,2]
[405870022,1771374638448,-235.0,0.00010335,2]
[405870024,1771374638458,-763.76,0.00010351,2]
[405870026,1771374638467,-1000.0,0.0001039,2]
[405870028,1771374638476,-260.0,0.00010411,2]
[405870030,1771374638485,-250.0,0.0001067,2]
[405870032,1771374638495,-193.0,0.0001067,2]
[405870034,1771374638504,-250.0,0.0001067,2]
[405870036,1771374638513,-3200.0,0.000109,3]
[405870038,1771374638522,-733.72724094,0.000109,2]
[405870040,1771374638531,-7742.069,0.00010903,2]
[405870042,1771374638540,-746.846,0.00010903,2]
[405870044,1771374638549,-9999.99,0.00010903,2]
[405870046,1771374638558,-999.99,0.00010903,2]
[405870048,1771374638567,-9999.99,0.00010903,2]
[405870050,1771374638576,-9999.99,0.00010941,2]
[405870052,1771374638585,-499.99,0.00010941,2]
[405870054,1771374638594,-9999.99,0.00010941,2]
[405870056,1771374638603,-150.99,0.00010941,2]
[405870058,1771374638613,-9999.99,0.00010941,2]
[405870060,1771374638622,-299.99,0.00010941,2]
[405870062,1771374638631,-13062.74,0.00010941,2]
[405870064,1771374638640,-150.99,0.00010941,2]
[405870066,1771374638649,-9419.8,0.00010959,2]
[405870068,1771374638658,-150.0,0.00010959,2]
[405870070,1771374638667,-300.0,0.00010999,2]
[405870071,1771374638676,-300.0,0.00010999,2]
[405870073,1771374638685,-300.0,0.00010999,2]
[405870075,1771374638694,-300.0,0.00010999,2]
[405870077,1771374638703,-300.0,0.00010999,2]
[405870079,1771374638712,-250.0,0.00010999,2]
[405870081,1771374638721,-6034.81891893,0.00011,2]
[405870083,1771374638730,-1009.2,0.00011,2]
[405870085,1771374638739,-1066.36814865,0.00011041,2]
[405870087,1771374638749,-33297.29814554,0.00011099,2]
[405870089,1771374638758,-33297.29814554,0.00011099,2]
[405870091,1771374638767,-33297.29814554,0.00011099,2]
[405870093,1771374638776,-1600.0,0.00011117,2]
[405870095,1771374638785,-151.0,0.00011119,2]
[405870097,1771374638794,-151.0,0.00011119,2]
[405870099,1771374638803,-151.0,0.00011119,2]
[405870101,1771374638813,-151.0,0.00011119,2]
[405870103,1771374638822,-500.0,0.00011119,2]
[405870105,1771374638831,-151.0,0.00011119,2]
[405870107,1771374638840,-500.0,0.00011119,2]